Cogmind - Beta 17.1 @@@ ROGUE MODE // 2026.09.15 @ 08:37:56 Player: Kotyk77 Result: Destroyed by G-34 Mercenary with Small Laser Performance ------------- Evolutions (0) 0 Regions Visited (1) 200 Robots Destroyed (7) 35 Value Destroyed (196) 196 Prototype IDs (0) 0 Alien Tech Used (0) 0 Bonus (0) 0 TOTAL SCORE: 431 Bonus ------- None Cogmind --------- Core Integrity 0/250 Matter 247/300 Energy 100/100 System Corruption 0% Temperature Cool (80) Movement Rolling (90) Location -10/Materials Parts ------- > --- POWER (1) -------- (None) > --- PROPULSION (2) --- Wheel Compact Wheel > --- UTILITY (2) ------ Small Storage Unit > --- WEAPON (2) ------- Small Laser Small Laser > --- INVENTORY (8) ---- Ion Engine Light Ion Engine Compact Wheel Seismic Detector Peak State ------------ > --- POWER ------------ Ion Engine > --- PROPULSION ------- Compact Wheel Compact Wheel > --- UTILITY ---------- Small Storage Unit Improved Terrain Scanner > --- WEAPON ----------- Small Laser Assault Rifle > --- INVENTORY -------- Light Ion Engine Light Treads Light Treads Medium Laser [Rating: 9] Favorites ----------- Power Ion Engine Engine Ion Engine Propulsion Compact Wheel Treads Light Treads Wheel Compact Wheel Utility Small Storage Unit Device Improved Terrain Scanner Storage Small Storage Unit Protection Light Armor Plating Weapon Small Laser Energy Gun Small Laser Ballistic Gun Assault Rifle Build | -11 -10 ------- Run | Yrd Mat Slots Evolved . | . . Power . | . . Propulsion . | . . Utility . | . . Weapon . | . . Parts Attached 17 | 7 10 Power 2 | 1 1 Engine 2 | 1 1 Core . | . . Reactor . | . . Propulsion 7 | 2 5 Treads 2 | . 2 Leg . | . . Wheel 5 | 2 3 Hover . | . . Flight . | . . Utility 3 | 2 1 Device 1 | 1 . Storage 1 | 1 . Processor . | . . Hackware . | . . Protection 1 | . 1 Artifact . | . . Weapon 5 | 2 3 Energy Gun 4 | 1 3 Energy Cannon . | . . Ballistic Gun 1 | 1 . Ballistic Cannon . | . . Launcher . | . . Special Weapon . | . . Impact Weapon . | . . Slashing Weapon . | . . Piercing Weapon . | . . Special Melee Weapon . | . . Unidentified Prototypes . | . . Parts Lost 9 | . 9 Power 1 | . 1 Propulsion 3 | . 3 Utility 2 | . 2 Weapon 3 | . 3 Highest Loss Streak 5 | . 5 To Critical Strikes . | . . Average Backups 3 | 2 3 Power 1 | . 1 Propulsion 1 | 1 1 Utility . | . 1 Weapon . | . . Tool/Special . | . . Unused Backups 2 | . 2 Power 1 | . 1 Propulsion . | . . Utility 1 | . 1 Weapon . | . . Tool/Special . | . . Average Slot Usage (%) 88 | . 88 Engine 14 | . 14 Treads 7 | . 7 Wheel 19 | . 19 Device 8 | . 8 Storage 14 | . 14 Protection 2 | . 2 Energy Gun 15 | . 15 Ballistic Gun 6 | . 6 Peak Build Rating 9 | 9 9 Average Rating 6 | 6 7 On Entrance 4 | . 9 Avg Prop Armor Cover (%) . | . . Naked Turns . | . . Heaviest Build 15 | 14 15 Greatest Support 40 | 32 40 Greatest Overweight (x) 4 | . 4 Average Overweight (x) . | . . Largest Inventory Capacity 8 | 8 8 Average Capacity 7 | 7 8 Most Carried 5 | 5 5 Average Carried 3 | 2 3 Final Capacity 8 | 8 8 Final Carried 5 | 5 4 Class Distribution -------------------- 100% | Mutant Dominant Class ---------------- Mutant | -10/Materials Resources | -11 -10 ----------- Run | Yrd Mat Matter Collected 338 | 285 53 Remotely . | . . Salvage Created 279 | 72 207 Parts 17 | 5 12 Haulers Intercepted . | . . Recyclers Shooed . | . . Parts Field Recycled . | . . Retrieved Matter . | . . Parts Self-Destructed . | . . Prevented . | . . Parts Restored . | . . Kills | -11 -10 ------- Run | Yrd Mat Combat Hostiles Destroyed 5 | . 5 Guns 5 | . 5 Classes Destroyed 3 | 2 1 Tunneler 1 | 1 . Recycler 1 | 1 . Grunt 5 | . 5 Best Kill Streak 4 | 2 4 Combat Bots Only 4 | . 4 Max Kills in Single Turn 1 | 1 1 Gunslinging . | . . Exploded . | . . Melee . | . . Uniques/NPCs Destroyed . | . . Combat | -11 -10 -------- Run | Yrd Mat Hostile Shots Fired 136 | . 136 Missed 36 | . 36 Hits 100 | . 100 Projectile 100 | . 100 Critical Strikes 1 | . 1 Damage Taken 1188 | . 1188 Core 255 | . 255 Absorbed by Shields . | . . Core Remaining (%) 100 | 100 . Volleys Fired 29 | 5 24 Largest 2 | 2 2 Hottest 90 | 60 90 Shots Fired 57 | 10 47 Gun 57 | 10 47 Cannon . | . . Launcher . | . . Special . | . . Kinetic 19 | 5 14 Thermal 38 | 5 33 Explosive . | . . Electromagnetic . | . . Robot Hit Streak 10 | 9 10 Robot Miss Streak 3 | . 3 Penetration Max . | . . Secondary Targets 3 | . 3 Max Gunslinging Chain 1 | . 1 Shots Hit Robots 42 | 9 33 Core Hits 15 | 3 12 Critical Kills . | . . Critical Parts Destroyed . | . . Critical Strikes . | . . Melee Attacks . | . . Impact . | . . Slashing . | . . Piercing . | . . Sneak Attacks . | . . Combat Hostiles . | . . Follow-up Attacks . | . . Damage Inflicted 499 | 105 394 Guns 489 | 105 384 Cannons . | . . Explosions . | . . Melee . | . . Ramming 10 | . 10 Kinetic 187 | 51 136 Thermal 302 | 54 248 Explosive . | . . Electromagnetic . | . . Impact . | . . Slashing . | . . Piercing . | . . Highest Corruption . | . . Average Corruption . | . . Corruption Purged . | . . Corruption Blocked . | . . Overload Shots . | . . Overflow Damage . | . . Projectiles . | . . Explosions . | . . Melee . | . . Knockbacks . | . . Impact . | . . Kinetic . | . . Secondary . | . . Self-Inflicted Damage 4 | . 4 Shots . | . . Rammed 3 | . 3 Targets Rammed 3 | . 3 Kicked . | . . Crushed . | . . Highest Temperature 234 | . 234 Average Temperature 105 | . 105 Received Heat Transfer 687 | . 687 Siege Activations . | . . Martial Activations . | . . Shielding Activations . | . . Robots Disrupted . | . . Combat Hostiles . | . . Robots Corrupted . | . . Combat Hostiles . | . . Parts Fried . | . . Impact Corruptions . | . . Robots Melted . | . . Combat Hostiles . | . . Parts Melted . | . . Heat Transferred 747 | 125 622 Parts Sabotaged . | . . Parts Stolen . | . . Parts Stripped . | . . Power Chain Reactions . | . . Alert | -11 -10 ------- Run | Yrd Mat Maximum Alert Level . | . . Low Security (%) 100 | 100 100 Level 1 . | . . Level 2 . | . . Level 3 . | . . Level 4 . | . . Level 5 . | . . High Security . | . . Max Security . | . . Peak Influence 80 | 10 80 Initial . | . . Average 15 | 1 22 Influence Increases 160 | 10 150 Destroy 0b10 Robot/C 100 | . 100 Destroy 0b10 Robot/NC 10 | 10 . Destroy Leader 20 | . 20 Select Force Hacks 30 | . 30 Influence Decreases 160 | 10 150 Time Decay 90 | 10 80 Lost Part 70 | . 70 Squads Dispatched 1 | . 1 Investigation 1 | . 1 Extermination . | . . Reinforcement . | . . Assault . | . . Garrison . | . . Intercept . | . . Searches Triggered . | . . Construction Impeded . | . . Haulers Reinforced . | . . Active Scanning Responses . | . . Cargo Convoy Interrupts . | . . Stealth | -11 -10 --------- Run | Yrd Mat Distress Signals 1 | . 1 Communications Jammed . | . . Distress Signals . | . . Times Spotted 10 | . 10 Peak Tracking Total 6 | . 6 Tactical Retreats . | . . Traps | -11 -10 ------- Run | Yrd Mat Traps Triggered 1 | . 1 Indirectly . | . . Trap Hack Attempts . | . . Triggered . | . . Disarmed . | . . Reprogrammed . | . . Reused . | . . Traps Extracted . | . . Installed . | . . Triggered . | . . Machines | -11 -10 ---------- Run | Yrd Mat Machines Disabled . | . . Max in Single Turn . | . . Machines Repaired . | . . Machines Dismantled . | . . Machines Sabotaged . | . . Overloaded Fab Kills . | . . Hacking | -11 -10 --------- Run | Yrd Mat Machines Accessed 1 | . 1 Terminals . | . . Fabricators . | . . Repair Stations . | . . Recycling Units 1 | . 1 Scanalyzers . | . . Garrison Access . | . . Total Hacks 1 | . 1 Successful 1 | . 1 Failed . | . . Catastrophic . | . . Database Lockouts . | . . Manual 1 | . 1 Terminals . | . . Fabricators . | . . Repair Stations . | . . Recycling Units 1 | . 1 Scanalyzers . | . . Garrison Access . | . . Terminal Hacks . | . . Fabricator Hacks . | . . Repair Station Hacks . | . . Recycling Unit Hacks . | . . Scanalyzer . | . . Garrison Access Hacks . | . . Unauthorized Hacks 1 | . 1 Terminals . | . . Fabricators . | . . Repair Stations . | . . Recycling Units 1 | . 1 Tunnel 1 | . 1 Scanalyzers . | . . Garrison Access . | . . Data Cores Recovered . | . . Used . | . . Hacking Detections . | . . Full Trace Events . | . . Feedback Events . | . . Feedback Blocked . | . . Robot Schematics Acquired . | . . Robots Built . | . . Authchips . | . . Time . | . . Total Robot Build Rating . | . . Part Schematics Acquired . | . . Parts Built . | . . Authchips . | . . Time . | . . Total Part Build Rating . | . . Part Studies Acquired . | . . Parts Repaired . | . . Time . | . . Parts Recycled . | . . Recycled Matter . | . . Retrieved Matter . | . . Retrieved Components . | . . Parts Scanalyzed . | . . Part Schematics Acquired . | . . Parts Damaged . | . . Bothacking | -11 -10 ------------ Run | Yrd Mat Used RIF Installer . | . . Robots Hacked . | . . Non-combat . | . . Combat . | . . Robot Hacks Applied . | . . Relay Couplers Released . | . . Fabnet Peak Effective % . | . . Robots Rewired . | . . Allies Hacked . | . . Hacks Repelled . | . . Allies | -11 -10 -------- Run | Yrd Mat Total Allies . | . . Largest Group . | . . Highest-Rated Group . | . . Highest-Rated Ally . | . . Total Orders . | . . Ally Attacks . | . . Total Damage . | . . Kills . | . . Allies Corrupted . | . . Allies Melted . | . . Intel | -11 -10 ------- Run | Yrd Mat Active Infowar (turns) 144 | 41 103 Terrain 144 | 41 103 Robot Analysis Total . | . . Derelict Logs Recovered . | . . Drone Launches . | . . Drone Recoveries . | . . Exploration | -11 -10 ------------- Run | Yrd Mat Turns Passed 284 | 87 197 Spaces Moved 145 | 58 87 Core 4 | 2 2 Treads 16 | . 16 Legs . | . . Wheels 125 | 56 69 Hover . | . . Flight . | . . Fastest Speed 50 | 50 90 Average Speed 107 | 98 114 Slowest Speed 250 | 100 250 Overloaded Moves . | . . Propulsion Burnouts . | . . Robots Hopped . | . . Potential Cave-ins . | . . Cave-ins Triggered . | . . Exploration Rate (%) 9 | 3 16 Regions Visited 1 Branch Regions . Pre-discovered Areas 1 | . 1 Known Exits Taken . | . . Unknown Exits Taken 1 | 1 . Scrap Searched . | . . Spaces Dug . | . . Terrain Destroyed . | . . Melee . | . . Projectile . | . . AOE . | . . Terrain Rammed . | . . Walls Destroyed . | . . Machines Disabled . | . . Actions | -11 -10 --------- Run | Yrd Mat Total 209 | 74 135 Wait 10 | . 10 Move 144 | 57 87 Hop . | . . Pick Up 5 | 5 . Fast Attach 13 | 7 6 Attach 3 | . 3 Detach . | . . Swap 2 | . 2 Drop . | . . Fire 29 | 5 24 Melee . | . . Ram 2 | . 2 Kick . | . . Crush 1 | . 1 Escape Stasis . | . . Rewire . | . . Trap . | . . Miscellaneous . | . . Route ------- -11/Scrapyard -10/Materials History --------- Turn | Location | Event 13 | -11/Scrapyard | Discovered new exit (range 16) 88 | -11/Scrapyard | Entered Materials 219 | -10/Materials | Core integrity fell below 50% 225 | -10/Materials | Lost 5 parts (2n1u2w) 262 | -10/Materials | Core integrity fell below 20% 285 | -10/Materials | Destroyed by G-34 Mercenary with Small Laser Last Messages --------------- 00218_ R-06 Scavenger collects Aluminum Leg. 00222_ G-34 Mercenary destroyed. 00222_ K-01 Serf collects debris. 00225_ Med. Laser destroyed. 00226_ K-01 Serf collects debris. 00228_ G-34 Mercenary destroyed. 00229_ K-01 Serf collects debris. 00230_ Triggered Blade Trap. 00230_ Massive razor-sharp blades shoot up from within the floor. 00230_ Lgt. Treads severed. 00230_ Sml. Laser severed. 00234_ K-01 Serf collects debris. 00240_ Acquired Com. Wheel. 00245_ Lgt. Treads destroyed. 00246_ Acquired Com. Wheel. 00250_ Acquired Lgt. Armor Plating. 00258_ Slammed into G-34 Mercenary. 00261_ Acquired Sml. Laser. 00281_ Lgt. Armor Plating destroyed. 00285_ Ion Engine destroyed. Map ----- +----------------------------------------------------+ | ?????????????????????????????????????????????????? | | ?????????????????????????????????????????????????? | | ?????????????????????????????????????????????????? | | ?????????????????????????????????????????????????? | | ?????????????????????????????????????????????????? | | ?????????????????????????????????????????????????? | | ?????????????????????????????????????????????????? | | ?????????????????????????????????????????????????? | | ???????????##########????????????????????????????? | | ???????????# #????????????????????????????? | | ???????????# """#??????????#????????#????????? | | ???????????# """#?????????????????????? ?????? | | ???????????# """# ??? ??????#?#??????????????# | | ???????????# #?????????###########??? #???? | | ???????????# | """# ??????? # #????????? | | ???????????# """#???????? # #??? ????? | | ???????????# """#########/# #????????# | | ???????# # ## # #????????? | | ???????# ####+###### """ #"" #????????? | | ???????# [ = # "R #"Y #????????? | | ???????# =%^ =+%""" #"" #????????? | | ???????# ! =# = # #????????? | | ???????# """ """ # % % #####+############## | | ??????## """ """ ####+#####??# + % # | | ??????# """ """ ### ######## # # | | ??????# g%!@%= # = !# | | ??????+ g!* =####### + / # | | ??????# ""T"" g #?????# # # | | ??????# """""a #?????# # = # | | ??????# ########/#### ##??#?# # # | | ??????? ?????? ??? # ##????################# | | ????????? ????? ""?????# #??????#??????????????? | | ????????? ????? ????"??# #?????????????????????? | | ????????????????"??????# #?????? ??????????????? | | ???????????????? ???? ?# #???????????????#?????? | | ????????????????"??????# #?????????##??????????? | | ???????????????????????# u?????????????????????? | | ???????????????????"???# #?????????#???????????? | | ???????????????????????#####?????????????????????? | | ?????????????????????????????????? ??????????????? | | ?????????????????????????????????????????????????? | | ?????????????????????????????????????????????????? | | ?????????????????????????????????????????????????? | | ?????????????????????????????????????????????????? | | ?????????????????????????????????????????????????? | | | | | | | | | | | +----------------------------------------------------+ Best States ------------- Heat Dissipation 25 Energy Generation 10 Energy Capacity 250 Matter Stores 300 Matter Capacity 300 Sight Range 16 Terrain Scan Range 16 Terrain Scan Density 10 Armor Coverage 150 Evasion (%) 42 Recoil Reduction 2 Item Schematics ----------------- None Robot Schematics ------------------ None Fabricated ------------ Nothing Repaired ---------- Nothing Studied --------- None Alien Tech Used ----------------- None Achievements -------------- None Challenges ------------ None Game ------ Seed FieldTrackerMediator Manual? 0 Play Time 00:07:19 Cumulative 141.5 hours Start 2026.09.15 @ 08:33:09 End 2026.09.15 @ 08:37:56 Sessions 1 Manual Loads 0 Difficulty Rogue Special Mode None Game No. 115 Rogue 115 Adventurer 0 Explorer 0 Win Type - Total 1 Types 1/0/0/0/0/0/0/0/0/0 Lore% 21 Gallery% 46 Achievement% 31 Wizard Run 0 Options --------- Layout 1 ASCII 0 Keyboard 1 Movement Numpad Keybinds 0 Fullscreen 1 Font 32/SmallcapsGlow Map View 77x35 Zoom Use 0% Tactical HUD 1 Map Filters NONE Filters NONE Steam 1 RUN: 6f107fc2-5587-4a76-8c07-ef96706e7b3e